bitfinex-derivatives/quotes_ETHF0:USTF0_20250627
["timestamp","ask_amount","ask_price","bid_price","bid_amount"]
[1751020810891,0.81602,2450.1,2450.0,0.81603]
[1751020811190,1.77264667,2450.1,2450.0,6.13951988]
[1751020811589,1.77264667,2450.1,2450.0,6.85711988]
[1751020813087,0.95664667,2450.1,2450.0,7.67315988]
[1751020813993,0.95664667,2450.1,2450.0,9.11255988]
[1751020816186,1.77264667,2450.1,2450.0,7.67315988]
[1751020816997,0.95664667,2450.1,2450.0,7.67315988]
[1751020818092,0.95664667,2450.1,2450.0,4.46535988]
[1751020819098,1.77264667,2450.1,2450.0,4.46535988]
[1751020819300,0.95664667,2450.1,2450.0,4.46535988]
[1751020821498,4.16444667,2450.1,2449.8,3.83]
[1751020821804,0.81607,2449.9,2449.8,3.83]
[1751020822200,2.94497,2449.9,2449.8,3.83]
[1751020823191,2.94497,2449.9,2449.8,4.6461]
[1751020823812,2.94497,2449.9,2449.8,3.83]
[1751020824406,2.1289,2449.9,2449.8,4.6461]
[1751020824905,2.94497,2449.9,2449.8,4.6461]
[1751020825407,2.94497,2449.9,2449.8,3.83]
[1751020826111,0.8161,2449.8,2449.7,3.61471988]
[1751020826914,0.81614,2449.7,2449.6,5.65600349]
[1751020827211,0.81614,2449.7,2449.6,27.9458]
[1751020827413,1.3427,2449.8,2449.7,0.81614]
[1751020827599,7.6807,2450.2,2449.7,5.37992337]
[1751020827912,0.81604,2450.0,2449.9,3.2078]
[1751020828108,1.7686862,2450.0,2449.9,6.95558988]
[1751020828712,0.9526462,2450.0,2449.9,6.95558988]
[1751020829112,1.7686862,2450.0,2449.9,6.13951988]
[1751020829312,1.7686862,2450.0,2449.9,6.95558988]
[1751020829703,0.9526462,2450.0,2449.9,6.95558988]
[1751020830115,0.95252075,2450.0,2449.9,6.95558988]
[1751020830912,1.76856075,2450.0,2449.9,6.95558988]
[1751020832015,0.81604,2450.0,2449.9,6.95558988]
[1751020832314,0.81603,2450.1,2449.9,6.95558988]
[1751020832511,0.81599,2450.2,2450.0,0.81601]
[1751020832708,0.95249881,2450.1,2450.0,0.81601]
[1751020836520,1.76849881,2450.1,2450.0,0.81601]
[1751020836820,0.81604,2450.0,2449.9,6.95556988]
[1751020837215,0.81603,2450.1,2449.9,6.95556988]
[1751020838309,2.2429,2450.2,2450.0,0.81604]
[1751020838514,1.7681873,2450.1,2450.0,0.81604]
[1751020840723,0.9521873,2450.1,2450.0,0.81604]
[1751020840914,1.7681873,2450.1,2450.0,0.81604]
[1751020841115,1.7681873,2450.1,2449.9,6.95556988]
[1751020841321,0.816,2450.1,2449.9,6.95556988]
[1751020841821,0.816,2450.1,2450.0,0.81604]
[1751020842023,0.95190321,2450.1,2450.0,0.81604]
[1751020842417,1.76790321,2450.1,2449.9,6.95557988]
[1751020842612,0.816,2450.1,2449.9,6.95557988]
[1751020842923,0.816,2450.1,2450.0,0.81604]
[1751020843126,1.76768437,2450.1,2450.0,0.81604]
[1751020846126,0.81607,2449.9,2449.8,3.12810349]
[1751020846425,0.81614,2449.7,2449.6,2.44820349]
[1751020846616,0.81627,2449.3,2449.2,2.44820349]
[1751020846819,0.81627,2449.3,2449.2,43.24820349]
[1751020847222,0.81627,2449.3,2449.2,40.8]
[1751020848822,0.81626,2449.4,2449.2,44.54801988]
[1751020849422,1.3379,2449.5,2449.3,3.2078]
[1751020849626,1.53918,2449.6,2449.4,3.74793988]
[1751020850136,1.53917,2449.6,2449.5,41.6162]
[1751020850326,0.81615,2449.7,2449.5,41.4658]
[1751020850525,0.81615,2449.7,2449.6,2.93171988]
[1751020850925,2.14815,2449.7,2449.6,2.93171988]
[1751020851932,1.49832,2449.8,2449.6,3.74788988]
[1751020852125,0.81612,2449.8,2449.6,3.74788988]
[1751020852727,0.81614,2449.7,2449.6,2.93171988]
[1751020853232,0.81612,2449.8,2449.6,3.74787988]
[1751020853433,1.5366,2449.9,2449.7,0.81614]
[1751020853627,0.95010775,2449.8,2449.7,0.81614]
[1751020853826,1.76620775,2449.8,2449.7,0.81614]
[1751020854628,1.76620775,2449.8,2449.6,3.74786988]
[1751020854829,0.8161,2449.8,2449.7,0.81614]
[1751020855033,1.76632271,2449.8,2449.7,0.81614]
[1751020855334,1.76632271,2449.8,2449.6,3.74786988]
[1751020855335,0.81614,2449.7,2449.6,3.74786988]
[1751020855534,0.81614,2449.7,2449.6,2.93171988]
[1751020855737,0.81614,2449.7,2449.6,3.74788988]
[1751020855928,0.81614,2449.7,2449.6,2.93171988]
[1751020857844,0.81614,2449.7,2449.6,3.74788988]
[1751020858135,2.92159,2449.9,2449.7,0.81614]
[1751020858334,2.92159,2449.9,2449.8,2.93171988]
[1751020858530,3.87161177,2449.9,2449.8,2.93171988]
[1751020859434,0.81614,2449.7,2449.6,3.2078]
[1751020860133,1.51004,2449.7,2449.6,3.2078]
[1751020862742,0.6939,2449.7,2449.3,27.9438]
[1751020862948,0.81624,2449.4,2449.3,27.9438]
[1751020863336,0.81624,2449.4,2449.3,68.7438]
[1751020863844,2.20774,2449.4,2449.3,68.7438]
[1751020864044,1.3915,2449.4,2449.3,69.56007]
[1751020864248,1.3915,2449.4,2449.3,72.49178988]
[1751020865444,2.20774,2449.4,2449.3,72.49178988]
[1751020866044,2.20774,2449.4,2449.3,47.75578988]
[1751020866237,2.20774,2449.4,2449.3,72.49178988]
[1751020868348,0.81624,2449.4,2449.3,72.49178988]
[1751020868642,0.81624,2449.4,2449.3,71.67551988]
[1751020869047,0.81624,2449.4,2449.3,72.49178988]
[1751020869644,0.81624,2449.4,2449.3,71.67551988]
[1751020870944,7.32599367,2450.5,2449.3,71.67551988]
[1751020871150,0.8161,2449.8,2449.7,2.93171988]
[1751020871448,0.81614,2449.7,2449.6,0.6821]
[1751020871638,1.7668129,2449.7,2449.6,0.6821]
[1751020872246,1.7668129,2449.7,2449.6,1.49827]
[1751020873942,0.9506729,2449.7,2449.6,1.49827]
[1751020874140,0.9506729,2449.7,2449.6,4.70607]
[1751020875050,0.81613,2449.8,2449.7,0.81614]
[1751020875350,0.81613,2449.8,2449.7,2.93171988]
[1751020876448,1.76857763,2449.8,2449.7,2.93171988]
[1751020879052,1.76831472,2449.8,2449.7,2.93171988]
[1751020879245,0.81613,2449.8,2449.7,2.93171988]
[1751020879652,1.76832555,2449.8,2449.7,2.93171988]
[1751020879852,0.81613,2449.8,2449.7,2.93171988]
[1751020880646,0.81613,2449.8,2449.7,3.74785988]
[1751020882746,0.81613,2449.8,2449.7,2.93171988]
[1751020883457,0.81613,2449.8,2449.7,3.74785988]
[1751020885462,0.81613,2449.8,2449.7,2.93171988]
[1751020887359,0.81613,2449.8,2449.7,3.74785988]
[1751020888563,0.81609,2449.9,2449.8,0.81608]
[1751020889066,1.76784988,2449.9,2449.8,0.81608]
[1751020891367,0.81609,2449.9,2449.8,0.81608]
[1751020893968,0.95169502,2449.9,2449.8,0.81608]
[1751020894164,0.81606,2450.0,2449.9,0.81607]
[1751020894372,1.76781364,2450.0,2449.9,3.74778988]
[1751020894669,0.81607,2449.9,2449.8,3.74779988]
[1751020894964,1.76782364,2449.9,2449.8,3.74779988]
[1751020895570,0.81607,2449.9,2449.8,3.74779988]
[1751020898566,0.81607,2449.9,2449.8,0.81608]
[1751020900371,1.76835026,2449.9,2449.8,0.81608]
[1751020902075,0.8161,2449.8,2449.7,4.42793988]
[1751020902368,0.8161,2449.8,2449.7,3.61181988]
[1751020902572,0.8161,2449.8,2449.7,2.93171988]
[1751020903372,0.8161,2449.8,2449.7,3.74785988]
[1751020911180,0.8161,2449.8,2449.7,6.95565988]
[1751020911385,0.8161,2449.8,2449.7,3.2078]
[1751020912383,0.8161,2449.8,2449.7,4.02394]
[1751020915184,0.8161,2449.8,2449.7,3.2078]
[1751020915380,6.13951988,2449.8,2449.4,3.2078]
[1751020915581,0.8162,2449.5,2449.4,3.2078]
[1751020916481,0.8162,2449.5,2449.4,4.02404]
[1751020918092,0.8162,2449.5,2449.4,6.47196157]
[1751020920991,0.8162,2449.5,2449.4,47.27196157]
[1751020927496,0.8162,2449.5,2449.4,46.45572157]
[1751020927995,2.1758,2449.5,2449.4,47.27196157]
[1751020928392,0.8162,2449.5,2449.4,47.27196157]
[1751020928792,0.8162,2449.5,2449.4,71.99596157]
[1751020929697,0.8162,2449.5,2449.4,47.27196157]
[1751020929996,0.8162,2449.5,2449.4,71.99596157]
[1751020930292,0.8162,2449.5,2449.4,71.17972157]
[1751020930598,0.8162,2449.5,2449.4,47.27196157]
[1751020930792,0.8162,2449.5,2449.4,71.99596157]
[1751020934798,2.2515,2449.5,2449.4,71.99596157]
[1751020936398,0.6938,2449.7,2449.4,71.17972157]
[1751020936603,0.6729,2449.8,2449.6,0.81614]
[1751020936901,1.489,2449.8,2449.7,3.60601988]
[1751020937091,2.44222626,2449.8,2449.7,3.60601988]
[1751020937295,2.44222626,2449.8,2449.7,45.22215988]
[1751020938404,2.44222626,2449.8,2449.7,44.40601988]
[1751020940206,3.75762626,2449.8,2449.7,44.40601988]
[1751020941103,3.75762626,2449.8,2449.7,40.8]
[1751020941305,0.81614,2449.7,2449.6,24.721]
[1751020941908,0.81614,2449.7,2449.6,65.521]
[1751020942297,2.16794,2449.7,2449.6,40.8]
[1751020942499,2.16794,2449.7,2449.6,65.52]
[1751020943008,2.16794,2449.7,2449.6,24.72]
[1751020943603,2.16794,2449.7,2449.6,65.52]
[1751020950705,2.16794,2449.7,2449.6,65.518]
[1751020954807,1.76933626,2449.7,2449.6,40.8]
[1751020955110,0.81614,2449.7,2449.6,41.5155]
[1751020956111,0.81617,2449.6,2449.5,5.65572157]
[1751020956302,0.8162,2449.5,2449.4,24.716]
[1751020956705,0.8162,2449.5,2449.4,65.516]
[1751020956910,0.8162,2449.5,2449.4,68.44771988]
[1751020958813,0.8162,2449.5,2449.4,71.65551988]
[1751020959719,0.8162,2449.5,2449.4,65.516]
[1751020959916,0.8162,2449.5,2449.4,67.96426985]
[1751020960919,0.8162,2449.5,2449.4,43.24826985]
[1751020961107,0.8162,2449.5,2449.4,67.96426985]
[1751020961314,0.8162,2449.5,2449.4,43.24826985]
[1751020961517,0.8162,2449.5,2449.4,67.96426985]
[1751020962218,0.8162,2449.5,2449.4,70.89598973]
[1751020962722,0.8162,2449.5,2449.4,68.44771988]
[1751020963415,0.8162,2449.5,2449.4,70.89585365]
[1751020964222,0.8162,2449.5,2449.4,71.71209365]
[1751020965621,0.8162,2449.5,2449.4,74.91989365]
[1751020966923,0.8162,2449.5,2449.4,71.98817377]
[1751020967125,0.8162,2449.5,2449.4,74.10365365]
[1751020967330,0.8162,2449.5,2449.4,74.91989365]
[1751020969435,0.8162,2449.5,2449.4,74.10365365]
[1751020970335,0.8162,2449.5,2449.4,74.04108559]
[1751020973336,0.8162,2449.5,2449.4,73.22484559]
[1751020974537,0.8162,2449.5,2449.4,74.04108559]
[1751020975138,0.8162,2449.5,2449.4,73.22484559]
[1751020976440,0.8162,2449.5,2449.4,48.50884559]
[1751020976638,0.8162,2449.5,2449.4,73.22084559]
[1751020977241,0.8162,2449.5,2449.4,74.03708559]
[1751020978441,0.8162,2449.5,2449.4,70.82928559]
[1751020978636,0.8162,2449.5,2449.4,74.03708559]
[1751020980442,0.8162,2449.5,2449.4,73.22084559]
[1751020981045,0.8162,2449.5,2449.4,74.03708559]
[1751020981738,2.04007,2450.1,2449.4,73.22084559]
[1751020981942,0.81617,2449.7,2449.6,0.81616]
[1751020982238,0.81617,2449.7,2449.6,25.52616]
[1751020982636,0.81617,2449.7,2449.6,67.00566]
[1751020983032,0.81617,2449.7,2449.6,69.05857182]
[1751020984745,0.81608,2449.9,2449.8,0.8161]
[1751020985038,0.9514175,2449.9,2449.8,30.78681182]
[1751020985243,0.81604,2450.0,2449.9,0.81607]
[1751020985443,0.95121537,2450.1,2449.9,44.35858182]
[1751020985745,0.816,2450.1,2450.0,26.76191182]
[1751020986352,0.816,2450.1,2450.0,27.64035466]
[1751020987646,0.816,2450.1,2450.0,28.45639466]
[1751020988741,0.816,2450.1,2450.0,27.64035466]
[1751020989241,3.2078,2450.3,2450.0,27.64035466]
[1751020989440,4.02374,2450.3,2450.2,2.93135466]
[1751020989737,4.97355836,2450.3,2450.2,27.63835466]
[1751020989938,4.97355836,2450.3,2450.2,69.15595466]
[1751020990750,4.97355836,2450.3,2450.2,69.97192466]
[1751020991249,4.97355836,2450.3,2450.2,69.15595466]
[1751020992647,4.97355836,2450.3,2450.2,69.97192466]
[1751020992847,4.97355836,2450.3,2450.2,69.15595466]
[1751020993043,4.97355836,2450.3,2450.2,41.5176]
[1751020993250,4.97355836,2450.3,2450.2,66.2226]
[1751020993750,1.76575836,2450.3,2450.2,66.2226]
[1751020994352,0.81594,2450.3,2450.2,66.2226]
[1751020994653,0.81594,2450.3,2450.2,41.5176]
[1751020994852,0.81594,2450.3,2450.2,66.2216]
[1751020996247,0.81594,2450.3,2450.2,41.5176]
[1751020996549,0.81594,2450.3,2450.2,65.504]
[1751020997353,1.53224,2450.3,2450.2,65.504]
[1751020999359,4.74004,2450.3,2450.2,65.503]
[1751020999547,6.36752973,2450.3,2450.2,65.503]
[1751020999747,7.73002973,2450.3,2450.2,65.503]
[1751020999962,6.78114,2450.3,2450.2,65.503]
[1751021000252,6.78114,2450.3,2450.2,40.8]
[1751021000453,6.78114,2450.3,2450.2,65.502]
[1751021000653,7.73003253,2450.3,2450.2,40.8]
[1751021000953,7.73003253,2450.3,2450.2,65.502]
[1751021001349,7.73003399,2450.3,2450.2,65.502]
[1751021002050,7.73003399,2450.3,2450.2,40.8]
[1751021002249,7.73003399,2450.3,2450.2,65.502]
[1751021004658,7.73003399,2450.3,2450.2,65.501]
[1751021006358,6.36753399,2450.3,2450.2,65.501]
[1751021009058,7.74523399,2450.3,2450.2,65.501]
[1751021012760,7.74523399,2450.3,2450.2,40.8]
[1751021012963,7.74523399,2450.3,2450.2,65.499]
[1751021014161,7.74523399,2450.3,2450.2,40.8]
[1751021014372,7.74523399,2450.3,2450.2,65.499]
[1751021018069,0.816,2450.1,2450.0,0.688]
[1751021018270,1.76489399,2450.1,2450.0,25.386]
[1751021018662,1.76489399,2450.1,2450.0,66.186]
[1751021018863,0.81604,2450.0,2449.9,2.44813377]
[1751021019062,6.6870515,2450.0,2449.9,24.697]
[1751021019259,0.8161,2449.8,2449.7,3.12393377]
[1751021019463,0.8161,2449.8,2449.7,68.62093377]
[1751021019870,0.8161,2449.8,2449.7,66.1728]
[1751021021662,0.8161,2449.8,2449.7,41.4758]
[1751021021858,0.8161,2449.8,2449.7,66.1738]
[1751021022270,0.8161,2449.8,2449.7,41.4758]
[1751021022476,0.8161,2449.8,2449.7,66.1728]
[1751021026570,3.74745466,2449.8,2449.7,41.4758]
[1751021026777,4.97164466,2449.8,2449.4,3.11723377]
[1751021027076,0.81617,2449.6,2449.5,25.361]
[1751021029075,0.81617,2449.6,2449.5,0.664]
[1751021029377,0.81617,2449.6,2449.5,25.361]
[1751021029775,0.81617,2449.6,2449.5,0.664]
[1751021029978,0.81617,2449.6,2449.5,25.362]
[1751021031875,0.81617,2449.6,2449.5,26.1782]
[1751021032374,0.81617,2449.6,2449.5,26.7283]
[1751021033177,0.81617,2449.6,2449.5,27.5445]
[1751021033676,0.81617,2449.6,2449.5,25.362]
[1751021035879,0.81617,2449.6,2449.5,26.1782]
[1751021038481,0.81617,2449.6,2449.5,27.6046]
[1751021038780,0.81616,2449.7,2449.6,0.81615]
[1751021038977,0.81616,2449.7,2449.6,3.74750466]
[1751021042181,0.81616,2449.7,2449.6,2.93135466]
[1751021042682,0.81616,2449.7,2449.6,43.73135466]
[1751021042984,0.81616,2449.7,2449.6,40.8]
[1751021045585,0.81616,2449.7,2449.6,65.496]
[1751021047390,0.81616,2449.7,2449.6,66.31217]
[1751021047796,0.81616,2449.7,2449.6,65.496]
[1751021049296,1.76694057,2449.7,2449.6,65.496]
[1751021050995,1.76694057,2449.7,2449.6,66.31217]
[1751021051194,1.76694057,2449.7,2449.6,65.496]
[1751021051694,1.76694057,2449.7,2449.6,65.495]
[1751021052497,1.76694057,2449.7,2449.6,66.31117]
[1751021052999,1.76694057,2449.7,2449.6,40.8]
[1751021053200,2.99114057,2449.7,2449.4,2.44813377]
[1751021053400,0.8162,2449.5,2449.4,27.14213377]
[1751021053798,2.8087,2449.5,2449.4,27.14213377]
[1751021054098,2.8087,2449.5,2449.4,24.694]
[1751021056005,1.496,2449.5,2449.4,24.694]
[1751021056504,0.81624,2449.4,2449.3,3.97878377]
[1751021056695,0.81624,2449.4,2449.3,28.67278377]
[1751021056897,0.81623,2449.5,2449.4,0.81624]
[1751021057707,0.81621,2449.6,2449.5,0.81617]
[1751021058007,0.81621,2449.6,2449.5,28.71797]
[1751021058408,0.81616,2449.7,2449.6,0.81617]
[1751021058707,1.76716066,2449.7,2449.6,0.81617]
[1751021059508,0.81617,2449.6,2449.5,31.16612377]
[1751021059805,0.81617,2449.6,2449.5,28.71799]
[1751021060608,0.8162,2449.5,2449.4,3.96456377]
[1751021060907,0.81624,2449.4,2449.3,3.26439377]
[1751021061108,0.81624,2449.4,2449.3,27.95739377]
[1751021063311,3.9186,2449.8,2449.3,27.14113377]
[1751021063503,0.8162,2449.6,2449.5,0.81619]
[1751021063704,1.76730807,2449.6,2449.5,25.50919]
[1751021064314,0.8162,2449.6,2449.5,25.50919]
[1751021065114,0.8162,2449.6,2449.5,26.20619]
[1751021065318,0.81617,2449.7,2449.6,0.81616]
[1751021065506,1.76704333,2449.7,2449.6,0.81616]
[1751021068108,1.76704333,2449.7,2449.6,2.13256]
[1751021068618,0.95087333,2449.7,2449.6,5.06391466]
[1751021070817,0.81611,2449.8,2449.7,0.81614]
[1751021071122,1.76854442,2449.8,2449.7,25.50714]
[1751021073324,0.95243442,2449.8,2449.7,25.50714]
[1751021074415,0.95243442,2449.8,2449.7,26.95094]
[1751021074723,1.76853442,2449.8,2449.7,26.95094]
[1751021076024,1.76853442,2449.8,2449.7,27.63174]
[1751021076321,1.76853442,2449.8,2449.7,26.18794]
[1751021077423,1.76853442,2449.8,2449.7,24.69]
[1751021077924,3.13493442,2449.8,2449.7,24.69]
[1751021078124,3.80293442,2449.8,2449.7,24.69]
[1751021079231,3.80293442,2449.8,2449.7,25.50614]
[1751021080324,0.81615,2449.7,2449.6,0.81615]
[1751021080527,0.81615,2449.7,2449.6,25.50515]
[1751021082729,0.81615,2449.7,2449.6,0.81615]
[1751021082925,0.81616,2449.7,2449.6,25.50516]
[1751021083229,0.81616,2449.7,2449.6,24.689]
[1751021083428,0.81616,2449.7,2449.6,25.50517]
[1751021084931,0.81616,2449.7,2449.6,24.689]
[1751021086430,0.81616,2449.7,2449.6,25.50517]
[1751021092438,1.76809754,2449.7,2449.6,25.50517]
[1751021095339,0.95193754,2449.7,2449.6,25.50517]
[1751021095542,0.81612,2449.8,2449.7,0.81614]
[1751021095739,1.76841477,2449.8,2449.7,25.50214]
[1751021100250,0.95229477,2449.8,2449.7,25.50214]
[1751021100448,4.02383,2450.1,2450.0,0.81604]
[1751021100641,4.97732144,2450.1,2450.0,24.685]
[1751021101653,4.97732144,2450.1,2450.0,25.50104]
[1751021101956,4.16129144,2450.1,2450.0,25.50104]
[1751021102559,0.81599,2450.2,2450.1,0.81601]
[1751021102858,1.76870336,2450.2,2450.1,25.50101]
[1751021103058,1.76870336,2450.2,2450.1,66.30101]
[1751021103358,0.81599,2450.2,2450.1,66.30101]
[1751021107063,1.49426,2450.3,2450.2,0.81597]
[1751021107261,2.44528192,2450.3,2450.2,0.81597]
[1751021107760,1.76698192,2450.3,2450.2,0.81597]
[1751021108262,0.81596,2450.3,2450.2,0.81597]
[1751021108463,0.81597,2450.2,2450.1,66.30098]
[1751021109466,0.81596,2450.3,2450.2,0.81597]
[1751021109858,0.81596,2450.3,2450.1,65.485]
[1751021110058,0.81596,2450.3,2450.2,0.81597]
[1751021115167,0.81596,2450.3,2450.2,1.52757]
[1751021116965,0.81596,2450.3,2450.2,0.7116]
[1751021118067,0.81597,2450.2,2450.1,68.6928]
[1751021118362,1.47627,2450.2,2450.1,69.50881]
[1751021122969,0.81597,2450.2,2450.1,69.50881]
[1751021125163,0.8159,2450.5,2450.4,0.8159]
[1751021125365,1.76696048,2450.5,2450.4,25.4919]
[1751021125571,0.8159,2450.5,2450.4,25.4919]
[1751021125771,1.51376,2450.6,2450.5,0.81587]
[1751021125966,2.46480688,2450.6,2450.5,0.81587]
[1751021126176,0.95104688,2450.6,2450.5,0.81587]
[1751021126472,0.95104688,2450.6,2450.5,3.74722466]
[1751021126773,2.15469,2450.8,2450.7,0.81581]
[1751021126968,3.10568332,2450.8,2450.7,25.49081]
[1751021127363,3.10568332,2450.8,2450.7,24.675]
[1751021127766,3.10568332,2450.8,2450.7,25.49081]
[1751021130073,3.10568332,2450.8,2450.7,24.675]
[1751021130570,3.10568332,2450.8,2450.7,25.49081]
[1751021131678,3.10568332,2450.8,2450.7,24.675]
[1751021131975,0.81584,2450.6,2450.5,0.81585]
[1751021132174,0.81584,2450.6,2450.5,25.48885]
[1751021134479,1.3389,2450.8,2450.5,27.60435466]
[1751021134681,1.49226,2450.9,2450.8,0.81577]
[1751021134978,1.49226,2450.9,2450.8,25.48677]
[1751021135172,1.49226,2450.9,2450.8,26.14157]
[1751021135571,0.81576,2450.9,2450.8,26.14157]
[1751021135878,11.10532187,2451.0,2450.9,0.81574]
[1751021136677,0.81574,2450.9,2450.8,26.14155]
[1751021137166,0.81573,2451.0,2450.9,0.81574]
[1751021138376,0.81574,2450.9,2450.8,25.3258]
[1751021138573,3.74709466,2450.9,2450.8,0.6548]
[1751021138772,3.74709466,2450.9,2450.7,4.02359]
[1751021138773,0.81577,2450.8,2450.7,4.02359]
[1751021139079,0.81577,2450.8,2450.7,29.38099]
[1751021140073,0.81575,2450.9,2450.8,0.81575]
[1751021142386,0.81577,2450.8,2450.7,29.38098]
[1751021142683,0.81576,2450.9,2450.8,0.81576]
[1751021142883,0.81577,2450.8,2450.7,29.38098]
[1751021143284,0.81576,2450.9,2450.8,0.81577]
[1751021143484,4.71779,2451.1,2451.0,0.81571]
[1751021143680,4.02349,2451.1,2451.0,0.81571]
[1751021144081,4.02349,2451.1,2451.0,1.50481]
[1751021144378,4.02349,2451.1,2451.0,0.6891]
[1751021144776,5.34049,2451.1,2451.0,0.6891]
[1751021147088,2.13269,2451.1,2451.0,0.6891]
[1751021148294,0.81571,2451.0,2450.9,25.48274]
[1751021148484,1.53881,2451.0,2450.9,25.48274]
[1751021151685,1.53881,2451.0,2450.9,24.667]
[1751021151888,1.53881,2451.0,2450.9,25.48274]
[1751021152080,1.317,2451.1,2451.0,0.81571]
[1751021152393,3.08399949,2451.1,2451.0,0.81571]
[1751021152585,3.08399949,2451.1,2451.0,1.47811]
[1751021152985,0.95132949,2451.1,2451.0,1.47811]
[1751021153187,0.7091,2451.2,2451.1,0.81567]
[1751021153385,1.66036131,2451.2,2451.1,0.81567]
[1751021153589,0.95126131,2451.2,2451.1,0.81567]
[1751021153786,1.76690131,2451.2,2451.1,0.81567]
[1751021154689,4.15906131,2451.2,2450.6,9.48593377]
[1751021154893,0.81572,2451.0,2450.9,0.81571]
[1751021158611,6.1621,2451.1,2451.0,0.81571]
[1751021158811,0.81573,2451.0,2450.9,0.81572]
[1751021162415,1.76882609,2451.0,2450.9,0.81572]
[1751021166919,0.95309609,2451.0,2450.9,0.81572]
[1751021171416,0.95309609,2451.0,2450.9,2.90802]
[1751021172019,3.2078,2451.2,2451.1,0.81567]
[1751021172220,3.2078,2451.2,2451.1,25.47367]
[1751021172418,0.7095,2451.5,2451.1,26.69718]
[1751021172618,3.2078,2451.6,2451.5,0.81554]
[1751021173524,4.02331,2451.6,2451.5,0.81554]
[1751021174213,3.2078,2451.6,2451.5,0.81554]
[1751021175415,4.02331,2451.6,2451.5,0.81554]
[1751021176722,3.2078,2451.6,2451.5,0.81554]
[1751021177020,6.13915466,2451.6,2451.4,24.654]
[1751021177322,2.20384,2451.5,2451.4,24.654]
[1751021179227,2.03894,2451.4,2451.1,2.44626238]
[1751021179418,4.02344,2451.2,2451.1,2.44626238]
[1751021179617,0.81567,2451.1,2451.0,24.654]
[1751021179817,2.91397,2451.1,2451.0,65.454]
[1751021181019,0.81571,2451.0,2450.9,2.44536248]
[1751021181222,2.15701,2451.0,2450.9,27.09836248]
[1751021181724,2.15701,2451.0,2450.9,2.44536248]
[1751021181912,2.15701,2451.0,2450.9,27.09836248]
[1751021183727,2.15701,2451.0,2450.9,24.653]
[1751021185117,0.81574,2450.9,2450.8,2.44536248]
[1751021185323,8.39289466,2450.9,2450.8,0.53218831]
[1751021185825,0.81577,2450.8,2450.7,40.8]
[1751021186027,2.25377,2450.8,2450.7,40.8]
[1751021186228,0.81581,2450.7,2450.6,25.46883]
[1751021186527,1.47881,2450.7,2450.6,25.46883]
[1751021186726,1.47881,2450.7,2450.6,66.26883]
[1751021187221,1.47881,2450.7,2450.6,41.61583]
[1751021187426,1.47881,2450.7,2450.6,40.8]
[1751021187628,2.17481,2450.7,2450.6,65.454]
[1751021189829,2.17481,2450.7,2450.6,24.654]
[1751021190029,3.13287781,2450.7,2450.6,24.654]
[1751021190325,4.29035466,2450.7,2450.3,3.2078]
[1751021190530,0.81597,2450.2,2450.1,0.6582]
[1751021190731,0.81597,2450.2,2450.1,25.3132]
[1751021191033,0.81597,2450.2,2450.1,66.1132]
[1751021191528,2.13417,2450.2,2450.1,66.1132]
[1751021192332,2.13417,2450.2,2450.1,40.8]
[1751021192728,2.84267,2450.2,2450.1,65.457]
[1751021193436,0.81601,2450.1,2450.0,3.2078]
[1751021193638,2.25021,2450.1,2450.0,27.8648]
[1751021193831,5.18156466,2450.1,2450.0,3.2078]
[1751021194223,4.36555466,2450.1,2449.7,4.71703]
[1751021194534,0.81609,2449.9,2449.8,24.657]
[1751021194932,2.25026,2450.0,2449.8,66.2731]
[1751021195531,2.25026,2450.0,2449.9,24.657]
[1751021197546,0.81607,2449.9,2449.8,40.8]
[1751021197844,6.04817,2449.9,2449.8,65.459]
[1751021198636,8.97952466,2449.9,2449.8,24.659]
[1751021198839,0.81617,2449.6,2449.5,2.17039]
[1751021199039,0.81617,2449.6,2449.5,26.0152]
[1751021199229,0.81617,2449.6,2449.5,66.8152]
[1751021199426,0.81617,2449.6,2449.5,67.6314]
[1751021201740,0.81617,2449.6,2449.5,42.1542]
[1751021201937,0.81617,2449.6,2449.5,66.1341]
[1751021202339,0.81617,2449.6,2449.5,41.4721]
[1751021202541,0.81617,2449.6,2449.5,66.1341]
[1751021203143,0.81617,2449.6,2449.5,66.9503]
[1751021203440,0.81617,2449.6,2449.5,42.2883]
[1751021203836,0.81617,2449.6,2449.5,66.9503]
[1751021204138,1.3434,2449.8,2449.6,0.81614]
[1751021204339,2.1595,2449.8,2449.7,24.663]
[1751021207050,0.8161,2449.8,2449.7,24.663]
[1751021207745,0.81617,2449.6,2449.5,41.4721]
[1751021207942,0.81617,2449.6,2449.5,66.1361]
[1751021208344,0.81617,2449.6,2449.5,66.9523]
[1751021208944,0.81617,2449.6,2449.5,68.3947]
[1751021210444,0.81617,2449.6,2449.5,66.9523]
[1751021210945,0.81617,2449.6,2449.5,66.1361]
[1751021213146,0.81617,2449.6,2449.5,41.4721]
[1751021213338,3.74752466,2449.6,2449.5,25.3361]
[1751021213543,6.95532466,2449.6,2449.5,24.664]
[1751021213744,8.92572466,2449.6,2449.5,24.664]
[1751021215256,0.8162,2449.5,2449.4,40.8]
[1751021215548,0.8162,2449.5,2449.4,65.464]
[1751021219857,0.8162,2449.5,2449.4,40.8]
[1751021220151,0.8162,2449.5,2449.4,24.665]
[1751021220545,0.8162,2449.5,2449.4,65.465]
[1751021223853,0.8162,2449.5,2449.4,40.8]
[1751021224053,0.8162,2449.5,2449.4,65.465]
[1751021224253,0.8162,2449.5,2449.4,40.8]
[1751021224551,0.81624,2449.4,2449.3,0.6627]
[1751021224751,0.81624,2449.4,2449.3,25.3277]
[1751021225252,0.81624,2449.4,2449.3,0.6627]
[1751021226047,0.81624,2449.4,2449.3,1.47897]
[1751021226246,0.81624,2449.4,2449.3,4.68677]
[1751021226452,0.81624,2449.4,2449.3,7.11906995]